bitfinex/quotes_BTCUSD_20220120
["timestamp","ask_amount","ask_price","bid_price","bid_amount"]
[1642692501386,0.178373,43292.0,43290.0,0.01753634]
[1642692501587,0.173373,43292.0,43290.0,0.01753634]
[1642692502187,0.190373,43292.0,43290.0,0.01753634]
[1642692503437,0.173373,43292.0,43290.0,0.01753634]
[1642692504035,1.0,43291.0,43290.0,0.01753634]
[1642692505138,0.188373,43292.0,43290.0,0.01753634]
[1642692505442,0.173373,43292.0,43290.0,0.01753634]
[1642692505636,0.115582,43292.0,43290.0,0.01753634]
[1642692506288,0.130582,43292.0,43290.0,0.01753634]
[1642692506788,0.9620216,43291.0,43290.0,0.01753634]
[1642692507591,0.2120216,43291.0,43290.0,0.01753634]
[1642692507788,0.173374,43292.0,43290.0,0.01753634]
[1642692508189,0.765,43291.0,43290.0,0.01753634]
[1642692508890,1.20013,43290.0,43276.0,0.1]
[1642692509095,1.20013,43290.0,43269.0,0.50925]
[1642692509096,1.20123227,43288.0,43269.0,0.50925]
[1642692509295,1.20123227,43288.0,43267.0,0.9096]
[1642692509296,0.00122714,43278.0,43277.0,0.00024067]
[1642692509493,1.37746114,43278.0,43270.0,0.000361]
[1642692509691,1.37746114,43278.0,43263.0,0.11155]
[1642692509692,1.00122714,43278.0,43268.0,0.00039538]
[1642692509894,1.10533804,43269.0,43268.0,0.00039538]
[1642692510143,1.10533804,43269.0,43264.0,0.00046414]
[1642692510342,0.25533804,43269.0,43268.0,0.046]
[1642692510740,0.25533804,43269.0,43268.0,0.04639538]
[1642692510941,0.60533804,43269.0,43268.0,0.04639538]
[1642692511341,0.25533804,43269.0,43268.0,0.04639538]
[1642692511545,0.25533804,43269.0,43268.0,0.00039538]
[1642692511741,0.70533804,43269.0,43268.0,0.00039538]
[1642692511940,0.70533804,43269.0,43267.0,0.00041257]
[1642692512341,0.25833804,43269.0,43268.0,0.042]
[1642692512743,0.90833804,43269.0,43268.0,0.04239538]
[1642692513644,0.90533804,43269.0,43268.0,0.00039538]
[1642692513886,1.25533804,43269.0,43268.0,0.00039538]
[1642692514090,1.2,43268.0,43266.0,0.00118881]
[1642692514286,0.31716004,43269.0,43266.0,0.00118881]
[1642692514685,0.31716004,43269.0,43259.0,0.01155]
[1642692514886,0.31716004,43269.0,43265.0,0.00118883]
[1642692515487,0.31316004,43269.0,43265.0,0.00118883]
[1642692515799,0.3167444,43274.0,43260.0,0.00012033]
[1642692515800,0.057805,43273.0,43264.0,0.01155]
[1642692515987,0.057805,43273.0,43265.0,0.00118884]
[1642692516187,6.876e-05,43271.0,43265.0,0.00118884]
[1642692516388,6.876e-05,43271.0,43266.0,0.01155]
[1642692516992,0.24903152,43269.0,43261.0,0.01155]
[1642692517190,0.24903152,43269.0,43266.0,0.00118881]
[1642692517390,0.24903152,43269.0,43256.0,0.98345705]
[1642692517391,1.2,43267.0,43262.0,8.595e-05]
[1642692517648,0.14513542,43263.0,43262.0,8.595e-05]
[1642692517847,0.14393,43263.0,43262.0,8.595e-05]
[1642692518043,0.19393,43263.0,43262.0,8.595e-05]
[1642692518242,0.19893,43263.0,43262.0,8.595e-05]
[1642692518846,0.055,43263.0,43262.0,0.75008595]
[1642692519045,0.055,43263.0,43262.0,0.75921622]
[1642692519046,0.005,43263.0,43262.0,0.75921622]
[1642692519246,0.005,43263.0,43262.0,0.79785344]
[1642692519443,0.28518136,43277.0,43262.0,0.79785344]
[1642692519643,0.28518136,43277.0,43262.0,0.84785344]
[1642692519644,0.4694228,43276.0,43262.0,0.84785344]
[1642692519843,0.4694228,43276.0,43264.0,0.25274819]
[1642692519844,0.70490323,43276.0,43264.0,0.25274819]
[1642692520042,0.057805,43274.0,43264.0,0.30274819]
[1642692520543,0.057805,43274.0,43265.0,0.0463]
[1642692520947,0.28518136,43277.0,43265.0,0.0463]
[1642692521149,0.057805,43274.0,43266.0,0.01155]
[1642692521982,0.15836029,43277.0,43266.0,0.01155]
[1642692522183,0.115623,43273.0,43266.0,0.01155]
[1642692522382,0.115623,43273.0,43266.0,0.02555]
[1642692522781,0.05,43272.0,43266.0,0.02555]
[1642692522982,0.05787776,43271.0,43266.0,0.02555]
[1642692523382,0.27175294,43271.0,43266.0,0.014]
[1642692523587,0.27175294,43271.0,43265.0,0.05]
[1642692523783,0.27175294,43271.0,43264.0,0.00118888]
[1642692523984,0.27356317,43270.0,43264.0,0.00118888]
[1642692524182,0.27356317,43270.0,43268.0,0.00022007]
[1642692524382,1.30983788,43269.0,43268.0,0.00022007]
[1642692525056,0.15983788,43269.0,43264.0,0.03118887]
[1642692525556,0.15983788,43269.0,43263.0,6.876e-05]
[1642692525757,0.27175294,43271.0,43264.0,0.00118886]
[1642692526356,0.27175294,43271.0,43264.0,0.03818886]
[1642692526661,0.27175294,43271.0,43264.0,0.037]
[1642692526855,0.27175294,43271.0,43264.0,0.03818887]
[1642692526856,0.17916301,43269.0,43264.0,0.03818887]
[1642692527561,1.44236813,43265.0,43261.0,0.00010314]
[1642692527862,0.66141536,43264.0,43252.0,0.00025785]
[1642692528059,0.16093708,43259.0,43252.0,0.00025785]
[1642692528660,0.05783871,43258.0,43252.0,0.00025785]
[1642692528882,0.11567371,43258.0,43252.0,0.00025785]
[1642692529085,0.057835,43258.0,43252.0,0.00025785]
[1642692529283,0.057835,43258.0,43249.0,0.00030942]
[1642692529885,0.057835,43258.0,43250.0,0.01155]
[1642692530286,0.057835,43258.0,43251.0,0.00027504]
[1642692530886,0.057835,43258.0,43253.0,0.21269839]
[1642692531195,0.057819,43263.0,43254.0,0.00022347]
[1642692531386,0.057819,43263.0,43255.0,0.01155]
[1642692531788,0.00120726,43265.0,43256.0,0.00018909]
[1642692531989,0.00045134,43267.0,43256.0,0.00018909]
[1642692531990,0.00045134,43267.0,43260.0,0.22399823]
[1642692532187,0.00045134,43267.0,43262.0,0.00126091]
[1642692532387,0.08233674,43258.0,43256.0,0.013]
[1642692532646,0.16106876,43271.0,43258.0,0.9]
[1642692532647,8.595e-05,43266.0,43258.0,0.9]
[1642692532841,8.595e-05,43266.0,43262.0,0.0011889]
[1642692533044,6.876e-05,43265.0,43263.0,0.05785]
[1642692533243,6.876e-05,43265.0,43263.0,0.05914228]
[1642692533441,8.595e-05,43266.0,43263.0,0.05914228]
[1642692533844,6.876e-05,43265.0,43263.0,0.05914228]
[1642692534242,0.00045149,43267.0,43264.0,0.01155]
[1642692534444,0.00045149,43267.0,43265.0,0.0463]
[1642692534643,8.595e-05,43266.0,43265.0,0.0463]
[1642692535045,0.20805231,43266.0,43265.0,0.04047855]
[1642692535246,0.20805231,43266.0,43263.0,0.017]
[1642692535447,0.37369331,43266.0,43263.0,0.017]
[1642692535643,6.876e-05,43265.0,43262.0,0.00118891]
[1642692536045,0.20289423,43263.0,43262.0,0.00118891]
[1642692536285,6.876e-05,43265.0,43263.0,0.02710577]
[1642692537184,0.1750993,43265.0,43263.0,0.02710577]
[1642692537385,0.2329193,43265.0,43263.0,0.02710577]
[1642692537584,0.05788876,43265.0,43263.0,0.02710577]
[1642692537788,6.876e-05,43265.0,43263.0,0.02710577]
[1642692537984,6.876e-05,43265.0,43264.0,0.7463]
[1642692538386,0.02006876,43265.0,43264.0,0.7463]
[1642692538586,0.02006876,43265.0,43264.0,1.25785]
[1642692539192,0.02006876,43265.0,43264.0,0.85785]
[1642692539485,0.02006876,43265.0,43264.0,0.81155]
[1642692539684,6.876e-05,43265.0,43263.0,0.02834955]
[1642692539887,0.05788176,43265.0,43263.0,0.07340577]
[1642692540137,0.05788176,43265.0,43264.0,0.51155]
[1642692540335,0.05788176,43265.0,43264.0,0.5]
[1642692540537,6.876e-05,43265.0,43264.0,1.05]
[1642692540839,6.876e-05,43265.0,43263.0,0.04310577]
[1642692541036,0.05788476,43265.0,43263.0,0.04310577]
[1642692541635,0.05788476,43265.0,43263.0,0.02710577]
[1642692541839,0.18276616,43255.0,43254.0,2.13322333]
[1642692542036,0.18276616,43255.0,43254.0,1.9093599]
[1642692542235,0.18276616,43255.0,43254.0,1.91065659]
[1642692542435,0.18276616,43255.0,43254.0,3.17965659]
[1642692542636,0.18276616,43255.0,43254.0,3.08122715]
[1642692542834,0.18276616,43255.0,43254.0,3.09013715]
[1642692543036,0.18276616,43255.0,43254.0,3.6924645]
[1642692543236,0.18276616,43255.0,43254.0,1.89643715]
[1642692543438,0.18276616,43255.0,43254.0,0.03791]
[1642692543636,0.23276616,43255.0,43254.0,0.00891]
[1642692544492,0.82116834,43255.0,43254.0,0.02291]
[1642692545289,0.23276616,43255.0,43254.0,0.02291]
[1642692545489,0.18276616,43255.0,43254.0,1.02291]
[1642692545691,0.77133885,43255.0,43254.0,1.5705518]
[1642692545889,0.18276616,43255.0,43254.0,1.3565518]
[1642692546290,0.18276616,43255.0,43254.0,1.59608418]
[1642692546492,0.18276616,43255.0,43254.0,1.98323331]
[1642692546689,0.18276616,43255.0,43254.0,3.45445163]
[1642692546890,0.18276616,43255.0,43254.0,3.37033983]
[1642692547838,0.18276616,43255.0,43254.0,3.12445983]
[1642692548238,0.18276616,43255.0,43254.0,3.0279967]
[1642692548440,0.18276616,43255.0,43254.0,3.0349967]
[1642692548938,2.46293516,43255.0,43254.0,3.0349967]
[1642692549339,2.46293516,43255.0,43254.0,3.27015639]
[1642692550139,0.89926759,43255.0,43254.0,5.60188259]
[1642692550341,0.00012033,43264.0,43263.0,0.00125392]
[1642692550540,0.00012033,43264.0,43263.0,0.24532361]
[1642692550741,0.27513498,43277.0,43263.0,0.05646392]
[1642692550939,0.00045869,43265.0,43263.0,0.10646392]
[1642692551390,0.00045869,43265.0,43263.0,0.0463]
[1642692551597,0.00045869,43265.0,43261.0,0.23515969]
[1642692551790,0.25398082,43266.0,43261.0,0.23515969]
[1642692551992,0.30398082,43266.0,43261.0,0.23515969]
[1642692552194,0.00013752,43265.0,43261.0,0.23515969]
[1642692552394,0.00013752,43265.0,43261.0,0.01]
[1642692552693,0.11575833,43264.0,43261.0,0.005]
[1642692552893,0.16575833,43264.0,43261.0,0.005]
[1642692553097,0.00010314,43263.0,43261.0,0.005]
[1642692553295,0.25928945,43263.0,43261.0,0.005]
[1642692553492,0.25876467,43263.0,43261.0,1.005]
[1642692553692,0.25876467,43263.0,43261.0,1.0]
[1642692554292,0.30237182,43263.0,43261.0,1.0]
[1642692554493,0.45872328,43263.0,43261.0,1.0]
[1642692554693,1.06128944,43262.0,43261.0,0.537364]
[1642692555140,0.05127154,43262.0,43261.0,0.537364]
[1642692556440,0.07027154,43262.0,43261.0,0.537364]
[1642692556643,0.069,43262.0,43261.0,0.537364]
[1642692556841,0.069,43262.0,43261.0,0.647364]
[1642692557741,0.05,43262.0,43261.0,0.647364]
[1642692558343,0.165638,43264.0,43261.0,0.647364]
[1642692558541,0.765,43262.0,43261.0,0.647364]
[1642692558792,0.815,43262.0,43261.0,0.647364]
[1642692559692,0.8,43262.0,43261.0,0.647364]
[1642692560096,0.05,43262.0,43261.0,0.647364]
[1642692560294,0.44987989,43263.0,43261.0,0.647364]
[1642692560494,0.013,43262.0,43261.0,0.647364]
[1642692561097,0.013,43262.0,43261.0,0.74865481]
[1642692561296,0.013,43262.0,43261.0,1.24865481]
[1642692561498,0.013,43262.0,43261.0,1.91675647]
[1642692561696,0.00045882,43265.0,43261.0,1.91675647]
[1642692561998,0.00045882,43265.0,43261.0,1.3927245]
[1642692562202,0.00045882,43265.0,43261.0,1.4927245]
[1642692562395,0.00045882,43265.0,43261.0,1.5067245]
[1642692562659,0.00012033,43270.0,43261.0,1.5067245]
[1642692562848,0.00045884,43265.0,43261.0,1.5067245]
[1642692563049,0.00045884,43265.0,43262.0,0.29011779]
[1642692563449,0.00019584,43265.0,43262.0,0.34011779]
[1642692563650,0.00019584,43265.0,43262.0,0.44011779]
[1642692563851,0.00010314,43269.0,43264.0,0.00891]
[1642692564150,8.595e-05,43268.0,43264.0,0.00891]
[1642692564551,6.876e-05,43267.0,43265.0,0.09632995]
[1642692564752,6.876e-05,43267.0,43266.0,2.34120727]
[1642692564952,6.876e-05,43267.0,43266.0,2.38750727]
[1642692565154,6.876e-05,43267.0,43266.0,2.48750727]
[1642692565551,6.876e-05,43267.0,43266.0,0.14750727]
[1642692565754,6.876e-05,43267.0,43266.0,0.05641727]
[1642692566394,6.876e-05,43267.0,43266.0,0.06541727]
[1642692566789,6.876e-05,43267.0,43266.0,1.06541727]
[1642692567797,6.876e-05,43267.0,43266.0,1.05641727]
[1642692567990,6.876e-05,43267.0,43266.0,1.04750727]
[1642692568393,6.876e-05,43267.0,43266.0,1.05650727]
[1642692568792,6.876e-05,43267.0,43266.0,1.06541727]
[1642692569190,0.00121176,43267.0,43266.0,1.06541727]
[1642692569391,0.00121176,43267.0,43266.0,1.16541727]
[1642692569593,0.00121176,43267.0,43266.0,1.50189588]
[1642692569792,0.00121176,43267.0,43266.0,1.49289588]
[1642692570545,0.00121176,43267.0,43266.0,1.50189588]
[1642692570743,0.783501,43288.0,43268.0,1.2]
[1642692571047,0.002,43299.0,43268.0,1.2]
[1642692571048,0.13873795,43291.0,43283.0,0.00122382]
[1642692571345,0.13873795,43291.0,43289.0,0.0012062]
[1642692571543,0.13795683,43291.0,43290.0,1.1601653]
[1642692571745,0.42,43295.0,43290.0,1.64698322]
[1642692571946,0.01,43298.0,43291.0,1.53570142]
[1642692572144,0.01,43298.0,43293.0,0.0012204]
[1642692572344,0.01,43298.0,43297.0,0.00120588]
[1642692572544,0.00145598,43301.0,43297.0,1.32438588]
[1642692572742,0.00145598,43301.0,43299.0,1.24]
[1642692572942,0.00145598,43301.0,43300.0,3.04116962]
[1642692573145,0.00145598,43301.0,43300.0,3.14116962]
[1642692573442,0.00058447,43301.0,43300.0,3.37758409]
[1642692573643,0.00058447,43301.0,43300.0,3.43533109]
[1642692574296,0.00058447,43301.0,43300.0,4.44424109]
[1642692574495,0.00058447,43301.0,43300.0,4.26624109]
[1642692574697,0.00058447,43301.0,43300.0,2.96849409]
[1642692574897,0.00058447,43301.0,43300.0,3.46849409]
[1642692575700,0.00058447,43301.0,43300.0,3.44649335]
[1642692575898,0.00058447,43301.0,43300.0,2.94649335]
[1642692576099,0.00058447,43301.0,43300.0,1.74649335]
[1642692576599,0.00058447,43301.0,43300.0,1.76649335]
[1642692576801,0.00058447,43301.0,43300.0,1.41162373]
[1642692577000,0.00058447,43301.0,43300.0,1.31162373]
[1642692577199,0.00058447,43301.0,43300.0,1.42162373]
[1642692577400,0.00058447,43301.0,43300.0,1.41145969]
[1642692577844,0.057759,43304.0,43301.0,1.2]
[1642692578040,0.045,43305.0,43303.0,1.25018971]
[1642692578248,0.00377338,43309.0,43307.0,0.65]
[1642692578249,0.001,43309.0,43307.0,0.65]
[1642692578440,0.01205351,43311.0,43308.0,0.89757193]
[1642692578641,0.01205351,43311.0,43309.0,0.04661122]
[1642692578840,0.01205351,43311.0,43310.0,1.0463]
[1642692579039,0.01205351,43311.0,43310.0,1.1463]
[1642692579240,0.01222541,43311.0,43310.0,2.3863]
[1642692579639,0.01222541,43311.0,43310.0,2.39521]
[1642692580240,0.01222541,43311.0,43310.0,2.34891]
[1642692580438,0.01222541,43311.0,43310.0,2.36791]
[1642692580844,0.01222541,43311.0,43310.0,4.37884046]
[1642692581041,0.421,43315.0,43312.0,0.31674103]
[1642692581322,0.421,43315.0,43314.0,2.64891]
[1642692581518,0.78948893,43344.0,43316.0,0.2]
[1642692581718,0.00223828,43346.0,43316.0,0.2]
[1642692581719,0.00223828,43346.0,43323.0,0.00125675]
[1642692581916,0.19407706,43341.0,43325.0,0.36536321]
[1642692582315,0.230339,43341.0,43325.0,0.36536321]
[1642692582617,0.19407706,43341.0,43325.0,0.38527321]
[1642692582916,0.057724,43340.0,43329.0,0.0012833]
[1642692583116,0.04020956,43339.0,43329.0,0.0012833]
[1642692583316,0.04947327,43338.0,43329.0,0.0012833]
[1642692583522,0.05,43340.0,43329.0,0.0012833]
[1642692583718,0.03579691,43337.0,43329.0,0.0012833]
[1642692583915,0.26110249,43340.0,43329.0,0.0012833]
[1642692584117,0.30923888,43340.0,43329.0,0.0012833]
[1642692584517,0.14700116,43337.0,43329.0,0.0062833]
[1642692584718,0.03742553,43335.0,43329.0,0.0062833]
[1642692585140,0.26834009,43335.0,43329.0,0.0062833]
[1642692585339,0.04416151,43334.0,43329.0,0.005]
[1642692585539,0.23091456,43335.0,43329.0,0.005]
[1642692585540,0.03743567,43333.0,43329.0,0.005]
[1642692585740,0.03770602,43332.0,43326.0,0.00030942]
[1642692585939,0.03657516,43331.0,43326.0,0.00030942]
[1642692586147,0.03657516,43331.0,43329.0,1.0]
[1642692586148,0.24825858,43330.0,43329.0,1.0]
[1642692586341,0.29832734,43330.0,43329.0,1.0]
[1642692586540,0.24917502,43330.0,43329.0,1.0]
[1642692586742,1.26917502,43330.0,43329.0,0.538059]
[1642692586940,1.64540902,43330.0,43329.0,0.538059]
[1642692587140,1.10253617,43330.0,43329.0,0.076104]
[1642692587740,1.45721227,43329.0,43325.0,0.16194543]
[1642692587942,1.34721227,43329.0,43325.0,0.16194543]
[1642692588541,1.35521227,43329.0,43325.0,0.17094543]
[1642692589392,0.24248068,43328.0,43325.0,0.17094543]
[1642692589588,1.5339769,43327.0,43317.0,0.04661122]
[1642692589788,0.0577429,43327.0,43317.0,0.04161122]
[1642692589990,0.05,43326.0,43318.0,0.00013752]
[1642692590391,0.05,43328.0,43312.0,0.29099954]
[1642692590594,0.05817054,43324.0,43318.0,0.05]
[1642692590791,0.05817054,43324.0,43320.0,0.00128982]
[1642692590993,8.595e-05,43323.0,43320.0,0.00128982]
[1642692591399,6.876e-05,43322.0,43320.0,0.00128982]
[1642692591591,6.876e-05,43322.0,43318.0,0.37426054]
[1642692591795,8.595e-05,43323.0,43318.0,0.32426054]
[1642692591993,8.595e-05,43323.0,43318.0,0.27426054]
[1642692592194,6.876e-05,43322.0,43315.0,0.00118793]
[1642692592392,6.876e-05,43322.0,43314.0,0.31255802]
[1642692592639,8.595e-05,43323.0,43318.0,0.03]
[1642692592843,0.00042751,43321.0,43318.0,0.03]
[1642692593840,6.876e-05,43322.0,43314.0,0.41137009]
[1642692594044,0.00042802,43322.0,43314.0,0.41137009]
[1642692594240,0.00042802,43322.0,43314.0,0.31137009]
[1642692594444,0.00042802,43322.0,43314.0,0.00125577]
[1642692594445,0.057739,43321.0,43314.0,0.00125577]
[1642692594641,0.057739,43321.0,43314.0,0.54925577]
[1642692595345,0.2102432,43319.0,43314.0,0.54925577]
[1642692595543,0.05,43318.0,43314.0,0.54925577]
[1642692595744,0.05,43318.0,43314.0,0.50125577]
[1642692595943,0.05,43318.0,43314.0,0.00125577]
[1642692596396,0.057744,43317.0,43314.0,0.00125577]
[1642692596599,0.05,43318.0,43314.0,0.34296811]
[1642692596794,0.05,43318.0,43314.0,0.06825577]
[1642692596993,0.00043464,43319.0,43314.0,0.06825577]
[1642692597398,0.00043464,43319.0,43314.0,0.17825577]
[1642692597597,0.05780776,43322.0,43314.0,0.17825577]
[1642692597795,0.00043465,43319.0,43314.0,0.17825577]
[1642692598396,0.00043465,43319.0,43314.0,0.00125577]
[1642692598595,0.00043465,43319.0,43314.0,0.07125577]
[1642692598797,0.05780776,43322.0,43314.0,0.07125577]
[1642692598998,0.25306217,43318.0,43314.0,0.07125577]
[1642692599401,0.25306217,43318.0,43314.0,0.07]
[1642692599402,0.68829538,43318.0,43314.0,0.07]
[1642692599800,0.04256511,43317.0,43313.0,0.00127388]
[1642692600044,0.65050773,43318.0,43313.0,0.00127388]
[1642692600045,0.05775747,43315.0,43313.0,0.00127388]
[1642692600243,0.05775747,43315.0,43314.0,6.876e-05]
[1642692600443,0.17327147,43315.0,43314.0,6.876e-05]
[1642692600742,1.42627147,43315.0,43314.0,6.876e-05]
[1642692601142,1.37627147,43315.0,43314.0,6.876e-05]
[1642692601342,0.118514,43315.0,43314.0,6.876e-05]
[1642692601541,0.118514,43315.0,43312.0,0.00118793]
[1642692601542,0.003,43315.0,43312.0,0.00118793]
[1642692601745,0.00043462,43319.0,43312.0,0.00118793]
[1642692602343,0.115492,43321.0,43311.0,0.2963019]
[1642692602643,0.00043463,43319.0,43313.0,0.00118793]
[1642692603042,0.00043463,43319.0,43314.0,6.876e-05]
[1642692603241,0.00043463,43319.0,43314.0,0.30895719]
[1642692603444,0.057742,43320.0,43314.0,6.876e-05]
[1642692603642,0.16381515,43318.0,43314.0,6.876e-05]
[1642692603890,0.21381515,43318.0,43314.0,6.876e-05]
[1642692604095,0.25631515,43318.0,43314.0,6.876e-05]
[1642692604292,0.24185074,43317.0,43314.0,6.876e-05]
[1642692604889,0.26031515,43318.0,43313.0,0.00118793]
[1642692605488,0.2597001,43318.0,43313.0,0.00118793]
[1642692605690,0.09588495,43318.0,43313.0,0.00118793]
[1642692605891,0.09188495,43318.0,43311.0,0.08830415]
[1642692606092,0.09188495,43318.0,43313.0,0.00118793]
[1642692606291,0.04938495,43318.0,43313.0,0.00118793]
[1642692606491,0.002,43318.0,43313.0,0.00118793]
[1642692609464,0.03023286,43316.0,43313.0,0.48347871]
[1642692609660,0.03023286,43316.0,43313.0,0.48466664]
[1642692610661,0.03023286,43316.0,43313.0,0.50547871]
[1642692611330,0.00015471,43323.0,43315.0,0.25]
[1642692611331,0.20537079,43323.0,43315.0,0.25]
[1642692611523,0.41639482,43329.0,43315.0,0.25]
[1642692611721,0.41639482,43329.0,43316.0,0.00012033]
[1642692611924,0.29919157,43328.0,43316.0,0.00012033]
[1642692612124,0.29919157,43328.0,43315.0,0.00013752]
[1642692612421,0.15970538,43325.0,43315.0,0.00013752]
[1642692612621,0.22861285,43323.0,43315.0,0.52013752]
[1642692613023,0.22861285,43323.0,43316.0,0.00012033]
[1642692613223,0.27861285,43323.0,43316.0,0.00012033]
[1642692613424,0.33635285,43323.0,43316.0,0.00012033]
[1642692613625,0.33635285,43323.0,43316.0,0.50012033]
[1642692614127,0.53548,43330.0,43317.0,0.00010314]
[1642692614327,0.42,43330.0,43321.0,0.0012125]
[1642692614525,6.876e-05,43327.0,43321.0,0.0012125]
[1642692614925,6.876e-05,43327.0,43322.0,0.08708115]
[1642692615364,6.876e-05,43327.0,43322.0,0.13708115]
[1642692615764,0.00050085,43327.0,43322.0,0.13708115]
[1642692616165,0.20987562,43323.0,43322.0,0.13708115]
[1642692616364,0.20987562,43323.0,43322.0,0.08708115]
[1642692616571,0.54472566,43323.0,43322.0,0.013]
[1642692616867,1.78610962,43323.0,43322.0,1.013]
[1642692617867,0.25987562,43323.0,43322.0,1.0]
[1642692618665,0.93087562,43323.0,43322.0,1.004]
[1642692619824,0.20027647,43315.0,43302.0,1.108986]
[1642692620022,0.32735004,43314.0,43307.0,0.00125509]
[1642692620223,0.376234,43313.0,43306.0,0.00018909]
[1642692620421,0.00126987,43312.0,43306.0,0.00018909]
[1642692620620,0.00126987,43312.0,43297.0,0.1]
[1642692620621,0.00126987,43312.0,43307.0,0.035]
[1642692620820,0.18660111,43311.0,43307.0,0.035]
[1642692621019,0.23660111,43311.0,43308.0,0.00015471]
[1642692621223,0.1950979,43310.0,43308.0,0.00015471]
[1642692621422,0.00126987,43312.0,43308.0,0.00015471]
[1642692621625,0.0425,43313.0,43308.0,0.00015471]
[1642692622026,0.0999,43336.0,43308.0,0.33500475]
[1642692622027,0.173272,43325.0,43308.0,0.33500475]
[1642692622222,0.42,43331.0,43308.0,0.33500475]
[1642692622223,0.057736,43323.0,43308.0,0.33500475]
[1642692622428,6.876e-05,43321.0,43309.0,0.20013752]
[1642692622670,6.876e-05,43321.0,43313.0,0.00121753]
[1642692622869,8.595e-05,43322.0,43313.0,0.00121753]
[1642692623068,8.595e-05,43322.0,43312.0,0.00082973]
[1642692623267,6.876e-05,43321.0,43312.0,0.00082973]
[1642692623470,6.876e-05,43321.0,43313.0,6.876e-05]
[1642692623668,8.595e-05,43322.0,43313.0,6.876e-05]
[1642692624067,0.00043923,43319.0,43313.0,6.876e-05]
[1642692624269,0.00043923,43319.0,43312.0,0.00127391]
[1642692624468,0.00043923,43319.0,43313.0,6.876e-05]
[1642692625167,8.595e-05,43322.0,43313.0,6.876e-05]
[1642692625368,0.00043922,43318.0,43313.0,6.876e-05]
[1642692625569,0.00043922,43318.0,43312.0,0.00127391]
[1642692625768,0.00043922,43318.0,43313.0,6.876e-05]
[1642692626169,0.21809762,43318.0,43313.0,6.876e-05]
[1642692626410,0.2176584,43318.0,43313.0,6.876e-05]
[1642692626609,0.21809762,43318.0,43313.0,6.876e-05]
[1642692626914,0.28839046,43317.0,43313.0,6.876e-05]
[1642692627109,0.03486508,43316.0,43313.0,6.876e-05]
[1642692627708,0.23461948,43315.0,43313.0,6.876e-05]
[1642692627909,0.23461948,43315.0,43312.0,0.00118794]
[1642692628109,0.34236748,43315.0,43313.0,6.876e-05]
[1642692628709,0.34736748,43315.0,43313.0,6.876e-05]
[1642692628914,0.04317007,43314.0,43313.0,6.876e-05]
[1642692629212,0.10092807,43314.0,43313.0,6.876e-05]
[1642692629409,0.057758,43314.0,43313.0,6.876e-05]
[1642692630464,0.057758,43314.0,43312.0,8.595e-05]
[1642692630675,0.073758,43314.0,43312.0,8.595e-05]
[1642692631466,0.189277,43314.0,43311.0,0.00118796]
[1642692631666,0.184277,43314.0,43312.0,8.595e-05]
[1642692632465,0.168277,43314.0,43312.0,8.595e-05]
[1642692632670,0.115514,43313.0,43311.0,0.00118796]
[1642692633066,0.115514,43313.0,43312.0,8.595e-05]
[1642692633670,0.115514,43313.0,43310.0,0.00118797]
[1642692633671,1.2,43312.0,43310.0,0.00118797]
[1642692633918,1.57743811,43311.0,43310.0,0.00118797]
[1642692634318,1.57743811,43311.0,43294.0,0.9818]
[1642692634319,1.0,43309.0,43294.0,0.9818]
[1642692634518,0.22429913,43301.0,43294.0,0.9818]
[1642692634715,0.22429913,43301.0,43295.0,0.00029223]
[1642692636516,0.37423033,43301.0,43295.0,0.00029223]
[1642692637122,0.43199933,43301.0,43295.0,0.00029223]
[1642692637864,0.057769,43301.0,43295.0,0.28774309]
[1642692638064,0.057758,43307.0,43295.0,0.00676773]
[1642692638276,0.057758,43307.0,43297.0,0.00121052]
[1642692638464,0.28745086,43314.0,43298.0,0.00683763]
[1642692638664,0.28745086,43314.0,43299.0,0.00516182]
[1642692638665,0.28789706,43314.0,43299.0,0.00516182]
[1642692638865,0.25135033,43311.0,43300.0,0.44098466]
[1642692639064,0.25135033,43311.0,43301.0,0.31422433]
[1642692639264,0.25135033,43311.0,43301.0,0.31441342]
[1642692639463,0.25135033,43311.0,43310.0,0.31579759]
[1642692639963,0.30910433,43311.0,43310.0,0.31579759]
[1642692640370,0.80910433,43311.0,43310.0,0.31579759]
[1642692640563,0.85327954,43311.0,43304.0,0.00105444]
[1642692640764,0.85427954,43311.0,43302.0,0.0001719]
[1642692640966,0.85427954,43311.0,43298.0,0.4019]
[1642692640967,0.85427954,43311.0,43308.0,0.00105438]
[1642692641613,0.05,43309.0,43308.0,0.00105438]
[1642692641814,0.10292921,43311.0,43308.0,0.00105438]
[1642692642018,0.057747,43315.0,43309.0,0.39178303]
[1642692642218,0.00050298,43314.0,43309.0,0.39178303]
[1642692642616,0.00050298,43314.0,43309.0,0.49178303]
[1642692642813,0.00050298,43314.0,43311.0,0.00128805]
[1642692643317,0.00050302,43314.0,43312.0,0.0425]
[1642692644412,6.876e-05,43316.0,43312.0,0.0425]
[1642692644614,0.00049597,43315.0,43313.0,0.28745086]
[1642692644818,0.00049597,43315.0,43314.0,4.18535421]
[1642692645065,0.00049597,43315.0,43314.0,4.35058221]
[1642692645263,0.00049597,43315.0,43314.0,4.55058221]
[1642692645464,6.876e-05,43316.0,43314.0,5.79058221]
[1642692645670,6.876e-05,43316.0,43315.0,1.43241674]
[1642692646063,6.876e-05,43316.0,43315.0,1.53241674]
[1642692646464,6.876e-05,43316.0,43315.0,2.97241674]
[1642692646666,6.876e-05,43316.0,43315.0,3.04041674]
[1642692646866,6.876e-05,43316.0,43315.0,1.60041674]
[1642692647065,6.876e-05,43316.0,43315.0,1.26542984]
[1642692647867,6.876e-05,43316.0,43315.0,1.46542984]
[1642692648271,6.876e-05,43316.0,43315.0,1.26542984]
[1642692648468,6.876e-05,43316.0,43315.0,2.70542984]
[1642692648666,6.876e-05,43316.0,43315.0,2.70442984]
[1642692649121,6.876e-05,43316.0,43315.0,3.1367151]
[1642692649316,6.876e-05,43316.0,43315.0,2.70442984]
[1642692649916,6.876e-05,43316.0,43315.0,2.63742984]
[1642692650318,6.876e-05,43316.0,43315.0,3.07830888]
[1642692650517,6.876e-05,43316.0,43315.0,2.63742984]
[1642692650722,6.876e-05,43316.0,43315.0,2.68042984]
[1642692651521,6.876e-05,43316.0,43315.0,3.06067561]
[1642692651719,6.876e-05,43316.0,43315.0,2.68042984]
[1642692651921,6.876e-05,43316.0,43315.0,2.63742984]
[1642692652764,6.876e-05,43316.0,43315.0,3.18342984]
[1642692652962,6.876e-05,43316.0,43315.0,3.61451459]
[1642692654063,6.876e-05,43316.0,43315.0,3.13742984]
[1642692654464,6.876e-05,43316.0,43315.0,1.69742984]
[1642692654666,6.876e-05,43316.0,43315.0,1.64342984]
[1642692654867,6.876e-05,43316.0,43315.0,0.546]
[1642692655664,6.876e-05,43316.0,43315.0,0.046]
[1642692656069,6.876e-05,43316.0,43314.0,1.96093046]
[1642692656326,6.876e-05,43316.0,43314.0,0.15]